fUST/lending_fUST_20251124
["ID","MTS","AMOUNT","RATE_DAILY","PERIOD"]
[394823594,1763989713476,-809.30826658,5.74e-05,2]
[394823595,1763989713501,-809.30826658,5.74e-05,2]
[394823596,1763989713526,-809.30826658,5.74e-05,2]
[394823597,1763989713550,-809.30826658,5.74e-05,2]
[394823598,1763989713573,-21082.00595265,5.741e-05,2]
[394823610,1763989720185,-100000.0,5.741e-05,2]
[394823641,1763989832523,-890000.0,5.641e-05,2]
[394823643,1763989832532,-20003.15946842,5.684e-05,2]
[394823645,1763989832542,-300.0,5.855e-05,2]
[394823647,1763989832551,-300.0,5.855e-05,2]
[394823649,1763989832561,-300.0,5.855e-05,2]
[394823651,1763989832570,-300.0,5.855e-05,2]
[394823652,1763989832580,-300.0,5.855e-05,2]
[394823654,1763989832589,-300.0,5.855e-05,2]
[394823656,1763989832598,-300.0,5.855e-05,2]
[394823658,1763989832608,-300.0,5.855e-05,2]
[394823660,1763989832616,-300.0,5.855e-05,2]
[394823662,1763989832625,-300.0,5.855e-05,2]
[394823664,1763989832634,-300.0,5.855e-05,2]
[394823666,1763989832644,-300.0,5.855e-05,2]
[394823667,1763989832653,-300.0,5.855e-05,2]
[394823668,1763989832663,-300.0,5.855e-05,2]
[394823670,1763989832674,-300.0,5.855e-05,2]
[394823671,1763989832683,-600.0,5.855e-05,2]
[394823672,1763989832694,-1000.0,6.271e-05,2]
[394823673,1763989832703,-1004.60089239,6.271e-05,2]
[394823675,1763989832713,-1098.19978832,6.271e-05,2]
[394823677,1763989832722,-314.92390226,6.271e-05,2]
[394823678,1763989832734,-189.53969197,6.271e-05,2]
[394823679,1763989832744,-513.04524053,6.271e-05,2]
[394823680,1763989832754,-314.12380822,6.271e-05,2]
[394823691,1763989838581,-473.75393627,6.271e-05,2]
[394823692,1763989838591,-520.41606423,6.271e-05,2]
[394823693,1763989838603,-479.58393577,6.271e-05,2]
[394823694,1763989838612,-415.02809599,6.271e-05,2]
[394823695,1763989838624,-584.97190401,6.271e-05,2]
[394823696,1763989838635,-58.12152747,6.271e-05,2]
[394823697,1763989838646,-651.5443167,6.271e-05,2]
[394823698,1763989838658,-290.33415583,6.271e-05,2]
[394823699,1763989838668,-1000.0,6.271e-05,2]
[394823700,1763989838678,-1000.0,6.271e-05,2]
[394823701,1763989838689,-129.85119597,6.271e-05,2]
[394823702,1763989838706,-282.83175995,6.271e-05,2]
[394823703,1763989838721,-587.31704408,6.271e-05,2]
[394823704,1763989838732,-720.0,6.44e-05,2]
[394823705,1763989838742,-459.08988808,6.818e-05,2]
[394823706,1763989838752,-1505.88750535,6.818e-05,2]
[394823707,1763989838762,-213.84129543,6.818e-05,2]
[394823708,1763989838772,-994.04376843,6.818e-05,2]
[394823743,1763989840670,-263.04933085,6.818e-05,2]
[394823813,1763989845514,-242.90690072,6.818e-05,2]
[394823814,1763989845527,-720.72828482,6.818e-05,2]
[394823822,1763989953851,301.90437708,0.0002,30]
[394823824,1763990331990,407.0,0.00014,10]
[394823826,1763990555260,289.32502813,0.0002,30]
[394823827,1763990783896,-300.0,5.634e-05,2]
[394823828,1763990783920,-300.0,5.634e-05,2]
[394823829,1763990783945,-500.0,5.635e-05,2]
[394823830,1763990783969,-427.23182945,5.635e-05,2]
[394823831,1763990783994,-500.0,5.635e-05,2]
[394823832,1763990784021,-500.0,5.635e-05,2]
[394823833,1763990784047,-500.0,5.635e-05,2]
[394823834,1763990784079,-2033.09648879,5.635e-05,2]
[394823835,1763990784110,-2033.09648879,5.635e-05,2]
[394823836,1763990784136,-500.0,5.635e-05,2]
[394823837,1763990784168,-2033.09648879,5.635e-05,2]
[394823838,1763990784193,-500.0,5.635e-05,2]
[394823839,1763990784224,-2033.09648879,5.635e-05,2]
[394823840,1763990784255,-2033.09648879,5.635e-05,2]
[394823841,1763990784282,-375.44076628,5.635e-05,2]
[394823842,1763990784327,-2033.09648879,5.635e-05,2]
[394823843,1763990784359,-2033.09648879,5.635e-05,2]
[394823844,1763990784393,-2033.09648879,5.635e-05,2]
[394823845,1763990784425,-2033.09648879,5.635e-05,2]
[394823846,1763990784457,-2033.09648879,5.635e-05,2]
[394823847,1763990784487,-2033.09648879,5.635e-05,2]
[394823848,1763990784519,-2033.09648879,5.635e-05,2]
[394823849,1763990784550,-2033.09648879,5.635e-05,2]
[394823850,1763990784580,-2033.09648879,5.635e-05,2]
[394823851,1763990784611,-2033.09648879,5.635e-05,2]
[394823852,1763990784641,-2033.09648879,5.635e-05,2]
[394823853,1763990784671,-2033.09648879,5.635e-05,2]
[394823854,1763990784702,-2033.09648879,5.635e-05,2]
[394823855,1763990784734,-2033.09648879,5.635e-05,2]
[394823856,1763990784766,-2033.09648879,5.635e-05,2]
[394823857,1763990784798,-2033.09648879,5.635e-05,2]
[394823858,1763990784830,-2033.09648879,5.635e-05,2]
[394823859,1763990784861,-2033.09648879,5.635e-05,2]
[394823860,1763990784892,-2033.09648879,5.635e-05,2]
[394823861,1763990784923,-2033.09648879,5.635e-05,2]
[394823862,1763990784954,-2033.09648879,5.635e-05,2]
[394823863,1763990784984,-2033.09648879,5.635e-05,2]
[394823864,1763990785016,-2033.09648879,5.635e-05,2]
[394823865,1763990785048,-2033.09648879,5.635e-05,2]
[394823866,1763990785077,-2033.09648879,5.635e-05,2]
[394823867,1763990785106,-2033.09648879,5.635e-05,2]
[394823868,1763990785136,-2033.09648879,5.635e-05,2]
[394823869,1763990785166,-2033.09648879,5.635e-05,2]
[394823870,1763990785200,-2033.09648879,5.635e-05,2]
[394823871,1763990785232,-2033.09648879,5.635e-05,2]
[394823872,1763990785264,-2033.09648879,5.635e-05,2]
[394823873,1763990785295,-2033.09648879,5.635e-05,2]
[394823874,1763990785326,-2033.09648879,5.635e-05,2]
[394823875,1763990785356,-2033.09648879,5.635e-05,2]
[394823876,1763990785388,-2033.09648879,5.635e-05,2]
[394823877,1763990785418,-2033.09648879,5.635e-05,2]
[394823878,1763990785450,-2033.09648879,5.635e-05,2]
[394823879,1763990785480,-2033.09648879,5.635e-05,2]
[394823880,1763990785512,-2033.09648879,5.635e-05,2]
[394823881,1763990785544,-2033.09648879,5.635e-05,2]
[394823882,1763990785575,-2033.09648879,5.635e-05,2]
[394823883,1763990785606,-2033.09648879,5.635e-05,2]
[394823884,1763990785636,-2033.09648879,5.635e-05,2]
[394823885,1763990785666,-2033.09648879,5.635e-05,2]
[394823886,1763990785697,-2033.09648879,5.635e-05,2]
[394823887,1763990785728,-2033.09648879,5.635e-05,2]
[394823888,1763990785759,-2033.09648879,5.635e-05,2]
[394823889,1763990785790,-2033.09648879,5.635e-05,2]
[394823890,1763990785821,-2033.09648879,5.635e-05,2]
[394823891,1763990785851,-2033.09648879,5.635e-05,2]
[394823892,1763990785885,-2033.09648879,5.635e-05,2]
[394823893,1763990785917,-2033.09648879,5.635e-05,2]
[394823894,1763990785947,-3260.60031893,5.635e-05,2]
[394823895,1763990785977,-3260.60031893,5.635e-05,2]
[394823896,1763990786007,-3260.60031893,5.635e-05,2]
[394823897,1763990786038,-3260.60031893,5.635e-05,2]
[394823898,1763990786075,-3260.60031893,5.635e-05,2]
[394823899,1763990786104,-3260.60031893,5.635e-05,2]
[394823900,1763990786132,-3260.60031893,5.635e-05,2]
[394823901,1763990786161,-3260.60031893,5.635e-05,2]
[394823902,1763990786190,-3260.60031893,5.635e-05,2]
[394823903,1763990786219,-3260.60031893,5.635e-05,2]
[394823904,1763990786249,-3260.60031893,5.635e-05,2]
[394823905,1763990786278,-3260.60031893,5.635e-05,2]
[394823906,1763990786307,-3260.60031893,5.635e-05,2]
[394823907,1763990786338,-3260.60031893,5.635e-05,2]
[394823908,1763990786367,-3260.60031893,5.635e-05,2]
[394823909,1763990786400,-3260.60031893,5.635e-05,2]
[394823910,1763990786432,-3260.60031893,5.635e-05,2]
[394823911,1763990786461,-3260.60031893,5.635e-05,2]
[394823912,1763990786490,-3260.60031893,5.635e-05,2]
[394823913,1763990786710,-3260.60031893,5.635e-05,2]
[394823914,1763990786741,-3260.60031893,5.635e-05,2]
[394823915,1763990786771,-3260.60031893,5.635e-05,2]
[394823916,1763990786802,-3260.60031893,5.635e-05,2]
[394823917,1763990786831,-3260.60031893,5.635e-05,2]
[394823918,1763990786861,-3260.60031893,5.635e-05,2]
[394823919,1763990786893,-3260.60031893,5.635e-05,2]
[394823920,1763990786923,-3260.60031893,5.635e-05,2]
[394823921,1763990786952,-3260.60031893,5.635e-05,2]
[394823922,1763990786982,-3260.60031893,5.635e-05,2]
[394823923,1763990787012,-3260.60031893,5.635e-05,2]
[394823924,1763990787042,-3260.60031889,5.635e-05,2]
[394823925,1763990787064,-161.33853975,5.636e-05,2]
[394823926,1763990787091,-78470.8791167,5.641e-05,2]
[394823927,1763990795562,-300000.0,5.641e-05,2]
[394823928,1763990796283,-300000.0,5.641e-05,2]
[394823929,1763990816095,-168.19308826,5.641e-05,2]
[394823930,1763990850333,300.0,5.473e-05,2]
[394823931,1763990872317,300.0,5.473e-05,2]
[394823932,1763990893875,300.0,5.473e-05,2]
[394823933,1763990916250,300.0,5.473e-05,2]
[394823936,1763990938072,300.0,5.473e-05,2]
[394823937,1763990960449,300.0,5.473e-05,2]
[394823938,1763990982492,300.0,5.473e-05,2]
[394823939,1763991004304,300.0,5.473e-05,2]
[394823941,1763991026160,300.0,5.473e-05,2]
[394823984,1763991031703,-300.0,5.528e-05,2]
[394823986,1763991031712,-300.0,5.534e-05,2]
[394823988,1763991031722,-54024.46883894,5.535e-05,2]
[394823989,1763991031733,-1000.0,5.535e-05,2]
[394823993,1763991031759,-670938.20594132,5.535e-05,2]
[394823995,1763991031770,-23709.37055836,5.535e-05,2]
[394824003,1763991034917,10448.87574457,5.48e-05,2]
[394824007,1763991038151,-3068.87568946,5.535e-05,2]
[394824008,1763991038163,-301.25937483,5.535e-05,2]
[394824024,1763991043084,1683.63683645,5.48e-05,2]
[394824047,1763991045243,-980.28605563,5.535e-05,2]
[394824048,1763991045255,-648.91394437,5.535e-05,2]
[394824063,1763991051102,10167.48741898,5.48e-05,2]
[394824068,1763991154803,277.26981875,0.0002,30]
[394824069,1763991170772,14783.6172061,4.563e-05,2]
[394824074,1763991466556,320.53858265,5.211e-05,2]
[394824077,1763991631311,320.53858265,5.211e-05,2]
[394824078,1763991633869,265.71690938,0.00019988,30]
[394824079,1763991634222,265.71690938,0.000196,30]
[394824080,1763991697079,243.57383333,0.0002,30]
[394824081,1763991763376,233.42492396,0.0002,30]
[394824136,1763992232063,-161.11176896,5.251e-05,2]
[394824138,1763992232072,-161.11176896,5.291e-05,2]
[394824140,1763992232081,-300.0,5.476e-05,2]
[394824142,1763992232091,-500.0,5.477e-05,2]
[394824144,1763992232100,-500.0,5.477e-05,2]
[394824146,1763992232109,-500.0,5.477e-05,2]
[394824148,1763992232118,-500.0,5.477e-05,2]
[394824150,1763992232127,-205.65984839,5.477e-05,2]
[394824152,1763992232137,-500.0,5.477e-05,2]
[394824154,1763992232146,-500.0,5.477e-05,2]
[394824155,1763992232155,-500.0,5.478e-05,2]
[394824157,1763992232164,-500.0,5.478e-05,2]
[394824159,1763992232173,-500.0,5.478e-05,2]
[394824160,1763992232182,-500.0,5.478e-05,2]
[394824161,1763992232193,-500.0,5.478e-05,2]
[394824162,1763992232202,-500.0,5.478e-05,2]
[394824163,1763992232212,-500.0,5.478e-05,2]
[394824164,1763992232221,-500.0,5.478e-05,2]
[394824165,1763992232231,-500.0,5.478e-05,2]
[394824166,1763992232241,-500.0,5.478e-05,2]
[394824167,1763992232250,-500.0,5.478e-05,2]
[394824168,1763992232260,-500.0,5.478e-05,2]
[394824171,1763992232269,-500.0,5.478e-05,2]
[394824175,1763992232278,-500.0,5.478e-05,2]
[394824178,1763992232289,-500.0,5.478e-05,2]
[394824181,1763992232298,-500.0,5.478e-05,2]
[394824185,1763992232307,-500.0,5.478e-05,2]
[394824186,1763992232316,-500.0,5.478e-05,2]
[394824188,1763992232325,-500.0,5.478e-05,2]
[394824191,1763992232335,-500.0,5.478e-05,2]
[394824193,1763992232344,-500.0,5.478e-05,2]
[394824194,1763992232353,-500.0,5.478e-05,2]
[394824196,1763992232363,-500.0,5.478e-05,2]
[394824198,1763992232372,-500.0,5.478e-05,2]
[394824201,1763992232381,-500.0,5.478e-05,2]
[394824202,1763992232391,-500.0,5.478e-05,2]
[394824205,1763992232400,-500.0,5.478e-05,2]
[394824207,1763992232410,-500.0,5.478e-05,2]
[394824209,1763992232419,-500.0,5.478e-05,2]
[394824210,1763992232428,-500.0,5.478e-05,2]
[394824212,1763992232438,-500.0,5.478e-05,2]
[394824214,1763992232447,-500.0,5.478e-05,2]
[394824216,1763992232456,-500.0,5.478e-05,2]
[394824218,1763992232465,-500.0,5.478e-05,2]
[394824220,1763992232475,-500.0,5.478e-05,2]
[394824221,1763992232485,-500.0,5.478e-05,2]
[394824223,1763992232494,-500.0,5.478e-05,2]
[394824225,1763992232503,-500.0,5.478e-05,2]
[394824226,1763992232513,-500.0,5.478e-05,2]
[394824227,1763992232522,-500.0,5.478e-05,2]
[394824228,1763992232532,-500.0,5.478e-05,2]
[394824229,1763992232541,-500.0,5.478e-05,2]
[394824231,1763992232550,-500.0,5.478e-05,2]
[394824232,1763992232560,-390.84431262,5.478e-05,2]
[394824234,1763992232570,-500.0,5.478e-05,2]
[394824235,1763992232581,-500.0,5.478e-05,2]
[394824236,1763992232591,-500.0,5.478e-05,2]
[394824237,1763992232601,-500.0,5.478e-05,2]
[394824238,1763992232610,-500.0,5.478e-05,2]
[394824239,1763992232619,-500.0,5.478e-05,2]
[394824240,1763992232628,-500.0,5.478e-05,2]
[394824241,1763992232637,-500.0,5.478e-05,2]
[394824242,1763992232647,-500.0,5.478e-05,2]
[394824243,1763992232656,-500.0,5.478e-05,2]
[394824244,1763992232667,-500.0,5.478e-05,2]
[394824245,1763992232677,-500.0,5.478e-05,2]
[394824246,1763992232686,-500.0,5.478e-05,2]
[394824247,1763992232696,-500.0,5.478e-05,2]
[394824248,1763992232706,-500.0,5.478e-05,2]
[394824249,1763992232716,-500.0,5.478e-05,2]
[394824250,1763992232725,-500.0,5.478e-05,2]
[394824251,1763992232735,-500.0,5.478e-05,2]
[394824252,1763992232744,-500.0,5.478e-05,2]
[394824253,1763992232753,-500.0,5.478e-05,2]
[394824254,1763992232763,-500.0,5.478e-05,2]
[394824255,1763992232772,-500.0,5.478e-05,2]
[394824256,1763992232781,-500.0,5.478e-05,2]
[394824257,1763992232791,-500.0,5.478e-05,2]
[394824258,1763992232800,-620.11966828,5.478e-05,2]
[394824259,1763992232813,-500.0,5.478e-05,2]
[394824260,1763992232828,-500.0,5.478e-05,2]
[394824261,1763992232838,-500.0,5.478e-05,2]
[394824262,1763992232847,-500.0,5.478e-05,2]
[394824263,1763992232857,-500.0,5.478e-05,2]
[394824264,1763992232867,-500.0,5.478e-05,2]
[394824265,1763992232876,-500.0,5.478e-05,2]
[394824266,1763992232885,-500.0,5.48e-05,2]
[394824267,1763992232895,-217.01690601,5.48e-05,2]
[394824268,1763992232911,-282.98309399,5.48e-05,2]
[394824269,1763992232920,-500.0,5.48e-05,2]
[394824270,1763992232929,-395.9957005,5.48e-05,2]
[394824448,1763992239651,873.0,0.0001836,120]
[394824461,1763992240239,-837.20734335,5.425e-05,2]
[394824463,1763992240856,873.0,0.00019278,120]
[394824464,1763992242155,873.0,0.00020242,120]
[394824478,1763992244996,-1096.40019257,5.425e-05,2]
[394824479,1763992245008,-1727.33264145,5.425e-05,2]
[394824480,1763992245020,-277.70553592,5.425e-05,2]
[394824481,1763992245031,-418.93857618,5.425e-05,2]
[394824493,1763992246156,-761.44954136,5.425e-05,2]
[394824495,1763992246166,-111.98969438,5.48e-05,2]
[394824497,1763992246176,-507.04413645,5.48e-05,2]
[394824499,1763992246185,-500.0,5.48e-05,2]
[394824502,1763992246195,-500.0,5.48e-05,2]
[394824504,1763992246204,-500.0,5.48e-05,2]
[394824506,1763992246213,-500.0,5.48e-05,2]
[394824507,1763992246223,-500.0,5.48e-05,2]
[394824510,1763992246232,-500.0,5.48e-05,2]
[394824511,1763992246241,-500.0,5.48e-05,2]
[394824513,1763992246251,-500.0,5.48e-05,2]
[394824516,1763992246260,-500.0,5.48e-05,2]
[394824518,1763992246269,-449.74562085,5.51e-05,2]
[394824520,1763992246278,-500.0,5.51e-05,2]
[394824522,1763992246287,-300.0,5.753e-05,2]
[394824524,1763992246296,-300.0,5.753e-05,2]
[394824526,1763992246306,-300.0,5.753e-05,2]
[394824528,1763992246315,-300.0,5.753e-05,2]
[394824530,1763992246324,-300.0,5.753e-05,2]
[394824532,1763992246334,-145.96337255,5.753e-05,2]
[394824694,1763992354622,293.81168438,0.0002,30]
[394824695,1763992399187,212.0779811,4.851e-05,2]
[394824696,1763992453925,4408.04920252,5.225e-05,2]
[394824697,1763992462094,980.67723795,5.225e-05,2]
[394824699,1763992477473,3974.50120703,5.225e-05,2]
[394824700,1763992535367,523.0,0.00018526,120]
[394824701,1763992536684,523.0,0.00019453,120]
[394824707,1763992835800,314.0,0.00018526,120]
[394824708,1763992837056,314.0,0.00019453,120]
[394824712,1763992953463,281.56953125,0.0002,30]
[394824729,1763992972830,-300.0,5.12e-05,2]
[394824737,1763993070507,-160.88953358,5.146e-05,2]
[394824738,1763993070528,-633.09263567,5.146e-05,2]
[394824739,1763993070551,-160.88953358,5.198e-05,2]
[394824740,1763993070572,-417.12829717,5.223e-05,2]
[394824761,1763993137734,189.0,0.00018494,120]
[394824762,1763993139157,189.0,0.00019419,120]
[394824775,1763993254927,310.27,4.25e-05,2]
[394824786,1763993265242,1007.0039624,0.000201,59]
[394824787,1763993278529,782.87170283,5.119e-05,2]
[394824885,1763993437184,162.0,0.00018477,120]
[394824893,1763993438098,-157.67174291,5.145e-05,2]
[394824894,1763993438109,-157.67174291,5.197e-05,2]
[394824895,1763993438119,-300.0,5.223e-05,2]
[394824896,1763993438129,-783.0,5.224e-05,2]
[394824897,1763993438138,-300.0,5.224e-05,2]
[394824898,1763993438148,-1200.0,5.224e-05,2]
[394824899,1763993438157,-15171.1081233,5.225e-05,2]
[394824900,1763993438166,-500.0,5.233e-05,2]
[394824901,1763993438179,-500.0,5.233e-05,2]
[394824902,1763993438190,-500.0,5.233e-05,2]
[394824903,1763993438199,-526.6451983,5.233e-05,2]
[394824904,1763993438209,-500.0,5.233e-05,2]
[394824905,1763993438220,-308.77388994,5.233e-05,2]
[394824906,1763993438230,-500.0,5.233e-05,2]
[394824907,1763993438239,-500.0,5.233e-05,2]
[394824908,1763993438249,-500.0,5.233e-05,2]
[394824909,1763993438260,-500.0,5.233e-05,2]
[394824910,1763993438270,-500.0,5.233e-05,2]
[394824911,1763993438280,-502.08093764,5.233e-05,2]
[394824912,1763993438289,-500.0,5.233e-05,2]
[394824913,1763993438299,-500.0,5.233e-05,2]
[394824914,1763993438308,-500.0,5.252e-05,2]
[394824915,1763993438318,-500.0,5.252e-05,2]
[394824916,1763993438327,-225626.2386409,5.253e-05,2]
[394824917,1763993438609,-29685.92661183,5.253e-05,2]
[394824918,1763993438747,162.0,0.000194,120]
[394824926,1763993440431,-8601.69121163,5.253e-05,2]
[394824938,1763993446413,-10187.76641844,5.253e-05,2]
[394824939,1763993446579,216.1997189,4.788e-05,2]
[394824948,1763993525155,62.65857827,5.047e-05,2]
[394824949,1763993525195,4345.39062425,5.047e-05,2]
[394824950,1763993553784,269.83746771,0.0002,30]
[394824952,1763993625408,155.36406009,0.0002,30]
[394824953,1763993643931,262.091,5.096e-05,2]
[394824954,1763993652194,262.091,5.096e-05,2]
[394824955,1763993675179,157.51830805,5.07e-05,2]
[394824956,1763993699039,157.51830805,5.07e-05,2]
[394824957,1763993721130,157.51830805,5.07e-05,2]
[394824958,1763993729978,162.0,0.00018459,120]
[394824959,1763993731434,162.0,0.00019382,120]
[394824960,1763993743312,157.51830805,5.07e-05,2]
[394824961,1763993765375,157.51830805,5.07e-05,2]
[394824962,1763993787485,157.51830805,5.07e-05,2]
[394824964,1763993809555,157.51830805,5.07e-05,2]
[394824965,1763993831709,157.51830805,5.07e-05,2]
[394824966,1763993854308,157.51830805,5.07e-05,2]
[394824967,1763993870352,157.51830805,5.096e-05,2]
[394824968,1763993878227,157.51830805,5.096e-05,2]
[394824969,1763993893360,157.51830805,5.096e-05,2]
[394824970,1763993902032,157.51830805,5.096e-05,2]
[394824971,1763993917677,157.51830805,5.096e-05,2]
[394824972,1763993926492,157.51830805,5.096e-05,2]
[394824973,1763993942261,157.51830805,5.096e-05,2]
[394824974,1763993949980,157.51830805,5.096e-05,2]
[394824975,1763993963377,-162.0,0.00020352,120]
[394824976,1763993963397,-27.0,0.0002037,120]
[394824977,1763993963835,-135.0,0.0002037,120]
[394824978,1763993963861,-40.0,0.0002039,120]
[394824979,1763993966436,157.51830805,5.096e-05,2]
[394824980,1763993974221,157.51830805,5.096e-05,2]
[394824981,1763993989646,157.51830805,5.096e-05,2]
[394824982,1763993997656,157.51830805,5.096e-05,2]
[394824983,1763994012859,157.51830805,5.096e-05,2]
[394824984,1763994021302,157.51830805,5.096e-05,2]
[394824987,1763994036962,157.51830805,5.096e-05,2]
[394824992,1763994045343,157.51830805,5.096e-05,2]
[394824993,1763994060699,157.51830805,5.096e-05,2]
[394824994,1763994068513,157.51830805,5.096e-05,2]
[394824995,1763994083690,157.51830805,5.096e-05,2]
[394824996,1763994092073,157.51830805,5.096e-05,2]
[394824997,1763994107320,157.51830805,5.096e-05,2]
[394824998,1763994131068,157.51830805,5.086e-05,2]
[394824999,1763994153625,157.51830805,5.086e-05,2]
[394825000,1763994154727,258.59423958,0.0002,30]
[394825001,1763994175788,157.51830805,5.086e-05,2]
[394825004,1763994197957,157.51830805,5.086e-05,2]
[394825006,1763994220648,316.15830805,5.086e-05,2]
[394825007,1763994242889,316.15830805,5.086e-05,2]
[394825008,1763994265637,316.15830805,5.086e-05,2]
[394825009,1763994287814,316.15830805,5.086e-05,2]
[394825010,1763994309977,316.15830805,5.086e-05,2]
[394825014,1763994318430,316.15830805,5.086e-05,2]
[394825020,1763994334209,158.64,5.086e-05,2]
[394825021,1763994342046,158.64,5.086e-05,2]
[394825022,1763994357609,158.64,5.086e-05,2]
[394825023,1763994365457,158.64,5.086e-05,2]
[394825024,1763994380866,158.64,5.086e-05,2]
[394825025,1763994389284,158.64,5.086e-05,2]
[394825026,1763994404744,158.64,5.086e-05,2]
[394825027,1763994410517,-158.64,5.137e-05,2]
[394825028,1763994410539,-9.55308826,5.152e-05,2]
[394825029,1763994413163,4443.65380987,5.1e-05,2]
[394825030,1763994428500,300.0,5.099e-05,2]
[394825031,1763994436693,300.0,5.099e-05,2]
[394825032,1763994450029,-300.0,5.151e-05,2]
[394825033,1763994450054,-160.73609872,5.151e-05,2]
[394825034,1763994450078,-490.44691174,5.152e-05,2]
[394825035,1763994450102,-500.0,5.152e-05,2]
[394825036,1763994450128,-500.0,5.152e-05,2]
[394825037,1763994450151,-500.0,5.152e-05,2]
[394825038,1763994450175,-500.0,5.152e-05,2]
[394825039,1763994450199,-500.0,5.152e-05,2]
[394825040,1763994450225,-500.0,5.152e-05,2]
[394825041,1763994450250,-500.0,5.152e-05,2]
[394825042,1763994450273,-453.20689813,5.152e-05,2]
[394825043,1763994450303,-775.30976849,5.152e-05,2]
[394825044,1763994450327,-500.0,5.152e-05,2]
[394825045,1763994450356,-775.30976849,5.152e-05,2]
[394825046,1763994450381,-484.11760687,5.152e-05,2]
[394825047,1763994450409,-775.30976849,5.152e-05,2]
[394825048,1763994450440,-775.30976849,5.152e-05,2]
[394825049,1763994450464,-500.0,5.152e-05,2]
[394825050,1763994450493,-775.30976849,5.152e-05,2]
[394825051,1763994450525,-775.30976849,5.152e-05,2]
[394825052,1763994450554,-775.30976849,5.152e-05,2]
[394825053,1763994450585,-775.30976849,5.152e-05,2]
[394825054,1763994450615,-775.30976849,5.152e-05,2]
[394825055,1763994450645,-775.30976849,5.152e-05,2]
[394825056,1763994450675,-775.30976849,5.152e-05,2]
[394825057,1763994450704,-775.30976849,5.152e-05,2]
[394825058,1763994450734,-775.30976849,5.152e-05,2]
[394825059,1763994450764,-775.30976849,5.152e-05,2]
[394825060,1763994450793,-775.30976849,5.152e-05,2]
[394825061,1763994450823,-775.30976849,5.152e-05,2]
[394825062,1763994450852,-775.30976849,5.152e-05,2]
[394825063,1763994450882,-775.30976849,5.152e-05,2]
[394825064,1763994450911,-775.30976849,5.152e-05,2]
[394825065,1763994450939,-775.30976849,5.152e-05,2]
[394825066,1763994450969,-775.30976849,5.152e-05,2]
[394825067,1763994450998,-775.30976849,5.152e-05,2]
[394825068,1763994451027,-775.30976849,5.152e-05,2]
[394825069,1763994451056,-775.30976849,5.152e-05,2]
[394825070,1763994451086,-775.30976849,5.152e-05,2]
[394825071,1763994451116,-775.30976849,5.152e-05,2]
[394825072,1763994451146,-775.30976849,5.152e-05,2]
[394825073,1763994451175,-775.30976849,5.152e-05,2]
[394825074,1763994451206,-775.30976849,5.152e-05,2]
[394825075,1763994451236,-775.30976849,5.152e-05,2]
[394825076,1763994451264,-775.30976849,5.152e-05,2]
[394825077,1763994451293,-775.30976849,5.152e-05,2]
[394825078,1763994451322,-775.30976849,5.152e-05,2]
[394825079,1763994451349,-775.30976849,5.152e-05,2]
[394825080,1763994451377,-775.30976849,5.152e-05,2]
[394825081,1763994451405,-775.30976849,5.152e-05,2]
[394825082,1763994451434,-775.30976849,5.152e-05,2]
[394825083,1763994451463,-775.30976849,5.152e-05,2]
[394825084,1763994451492,-775.30976849,5.152e-05,2]
[394825085,1763994451523,-775.30976849,5.152e-05,2]
[394825086,1763994451553,-775.30976849,5.152e-05,2]
[394825087,1763994451583,-775.30976849,5.152e-05,2]
[394825088,1763994451614,-775.30976849,5.152e-05,2]
[394825089,1763994451645,-775.30976849,5.152e-05,2]
[394825090,1763994451675,-775.30976849,5.152e-05,2]
[394825091,1763994451705,-775.30976849,5.152e-05,2]
[394825092,1763994451734,-775.30976849,5.152e-05,2]
[394825093,1763994451766,-775.30976849,5.152e-05,2]
[394825094,1763994451796,-1401.28172195,5.152e-05,2]
[394825095,1763994451828,-1401.28172195,5.152e-05,2]
[394825096,1763994451858,-1401.28172195,5.152e-05,2]
[394825097,1763994451888,-1401.28172195,5.152e-05,2]
[394825098,1763994451919,-1401.28172195,5.152e-05,2]
[394825099,1763994451950,-1401.28172195,5.152e-05,2]
[394825100,1763994451979,-1401.28172195,5.152e-05,2]
[394825101,1763994452010,-1401.28172195,5.152e-05,2]
[394825102,1763994452040,-1401.28172195,5.152e-05,2]
[394825103,1763994452071,-1401.28172195,5.152e-05,2]
[394825104,1763994452284,-1401.28172195,5.152e-05,2]
[394825105,1763994452314,-1401.28172195,5.152e-05,2]
[394825106,1763994452344,-1401.28172195,5.152e-05,2]
[394825107,1763994452373,-1401.28172195,5.152e-05,2]
[394825108,1763994452403,-1401.28172195,5.152e-05,2]
[394825109,1763994452431,-1401.28172195,5.152e-05,2]